fUSD/lending_fUSD_20260526
["ID","MTS","AMOUNT","RATE_DAILY","PERIOD"]
[423039055,1779786632000,-151.0,0.0002523,2]
[423039056,1779786632000,-235.395793,0.0002523,2]
[423039052,1779786632000,-191.6166446,0.00025082,2]
[423039059,1779786632000,-151.0,0.00025585,2]
[423039060,1779786632000,-821.5452,0.00025586,2]
[423039070,1779786632000,-272.86249828,0.00025683,2]
[423039061,1779786632000,-1000.0,0.000256,2]
[423039062,1779786632000,-194.28,0.00025676,2]
[423039063,1779786632000,-194.28,0.00025676,2]
[423039064,1779786632000,-500.0,0.00025683,2]
[423039067,1779786632000,-500.0,0.00025683,2]
[423039065,1779786632000,-500.0,0.00025683,2]
[423039068,1779786632000,-544.07333306,0.00025683,2]
[423039066,1779786632000,-500.0,0.00025683,2]
[423039071,1779786632000,-500.0,0.00025683,2]
[423039011,1779786632000,-5000.0,0.00023207,2]
[423039036,1779786632000,-151.0,0.00024,2]
[423039040,1779786632000,-225.41480527,0.000241,2]
[423039069,1779786632000,-500.0,0.00025683,2]
[423039038,1779786632000,-4654.27079018,0.00024078,2]
[423039043,1779786632000,-316.62845,0.000243,2]
[423039013,1779786632000,-4654.27079018,0.00023255,2]
[423039015,1779786632000,-1482.878611,0.00023256,2]
[423039018,1779786632000,-900.4286123,0.00023375,2]
[423039017,1779786632000,-2862.2039707,0.00023375,2]
[423039012,1779786632000,-378.19470933,0.00023255,2]
[423039016,1779786632000,-7142.1067028,0.00023375,2]
[423039019,1779786632000,-175.14,0.000234,2]
[423039014,1779786632000,-11054.2563761,0.00023256,2]
[423039022,1779786632000,-215.42269777,0.00023673,2]
[423039072,1779786632000,-500.0,0.00025683,2]
[423039027,1779786632000,-1355.0,0.00023798,2]
[423039026,1779786632000,-167.16,0.00023713,30]
[423039028,1779786632000,-2418.257,0.00023798,2]
[423039020,1779786632000,-473.94,0.00023535,2]
[423039024,1779786632000,-197.9383009,0.000237,2]
[423039037,1779786632000,-246.96183994,0.00024,2]
[423039034,1779786632000,-396.0,0.00024,2]
[423039045,1779786632000,-225.41480527,0.000244,2]
[423039042,1779786632000,-167.16,0.00024292,30]
[423039023,1779786632000,-225.41480527,0.000237,2]
[423039044,1779786632000,-354.5,0.00024324,2]
[423039039,1779786632000,-473.94,0.00024082,2]
[423039032,1779786632000,-188.0,0.00024,2]
[423039031,1779786632000,-225.41480527,0.000239,2]
[423039030,1779786632000,-1272.0,0.00023798,2]
[423039033,1779786632000,-168.0,0.00024,2]
[423039029,1779786632000,-525.0,0.00023798,2]
[423039035,1779786632000,-151.0,0.00024,2]
[423039113,1779786633000,-500.0,0.00025683,2]
[423039111,1779786633000,-500.0,0.00025683,2]
[423039109,1779786633000,-500.0,0.00025683,2]
[423039120,1779786633000,-500.0,0.00025683,2]
[423039105,1779786633000,-500.0,0.00025683,2]
[423039104,1779786633000,-500.0,0.00025683,2]
[423039100,1779786633000,-500.0,0.00025683,2]
[423039103,1779786633000,-500.0,0.00025683,2]
[423039106,1779786633000,-500.0,0.00025683,2]
[423039102,1779786633000,-500.0,0.00025683,2]
[423039110,1779786633000,-500.0,0.00025683,2]
[423039112,1779786633000,-500.0,0.00025683,2]
[423039119,1779786633000,-500.0,0.00025683,2]
[423039116,1779786633000,-500.0,0.00025683,2]
[423039117,1779786633000,-500.0,0.00025683,2]
[423039115,1779786633000,-500.0,0.00025683,2]
[423039118,1779786633000,-500.0,0.00025683,2]
[423039121,1779786633000,-500.0,0.00025683,2]
[423039124,1779786633000,-500.0,0.00025683,2]
[423039122,1779786633000,-500.0,0.00025683,2]
[423039127,1779786633000,-500.0,0.00025683,2]
[423039126,1779786633000,-500.0,0.00025683,2]
[423039125,1779786633000,-500.0,0.00025683,2]
[423039099,1779786633000,-500.0,0.00025683,2]
[423039123,1779786633000,-500.0,0.00025683,2]
[423039114,1779786633000,-500.0,0.00025683,2]
[423039101,1779786633000,-500.0,0.00025683,2]
[423039087,1779786633000,-500.0,0.00025683,2]
[423039096,1779786633000,-500.0,0.00025683,2]
[423039128,1779786633000,-500.0,0.00025683,2]
[423039082,1779786633000,-500.0,0.00025683,2]
[423039074,1779786633000,-614.68170507,0.00025683,2]
[423039073,1779786633000,-500.0,0.00025683,2]
[423039076,1779786633000,-500.0,0.00025683,2]
[423039081,1779786633000,-500.0,0.00025683,2]
[423039078,1779786633000,-500.0,0.00025683,2]
[423039083,1779786633000,-500.0,0.00025683,2]
[423039075,1779786633000,-389.84955338,0.00025683,2]
[423039077,1779786633000,-500.0,0.00025683,2]
[423039080,1779786633000,-500.0,0.00025683,2]
[423039079,1779786633000,-500.0,0.00025683,2]
[423039108,1779786633000,-500.0,0.00025683,2]
[423039085,1779786633000,-500.0,0.00025683,2]
[423039095,1779786633000,-500.0,0.00025683,2]
[423039089,1779786633000,-636.03195525,0.00025683,2]
[423039088,1779786633000,-500.0,0.00025683,2]
[423039090,1779786633000,-500.0,0.00025683,2]
[423039086,1779786633000,-500.0,0.00025683,2]
[423039091,1779786633000,-500.0,0.00025683,2]
[423039094,1779786633000,-500.0,0.00025683,2]
[423039093,1779786633000,-500.0,0.00025683,2]
[423039092,1779786633000,-500.0,0.00025683,2]
[423039097,1779786633000,-569.98056701,0.00025683,2]
[423039107,1779786633000,-500.0,0.00025683,2]
[423039098,1779786633000,-500.0,0.00025683,2]
[423039084,1779786633000,-500.0,0.00025683,2]
[423039129,1779786633000,-500.0,0.00025683,2]
[423039154,1779786633000,-500.0,0.00025683,2]
[423039131,1779786633000,-500.0,0.00025683,2]
[423039130,1779786633000,-500.0,0.00025683,2]
[423039159,1779786633000,-543.78231782,0.00025683,2]
[423039165,1779786633000,-200.0,0.00025683,2]
[423039163,1779786633000,-500.0,0.00025683,2]
[423039164,1779786633000,-500.0,0.00025683,2]
[423039166,1779786633000,-283.62804804,0.00025683,2]
[423039167,1779786633000,-500.0,0.00025685,2]
[423039169,1779786633000,-151.0,0.00025685,2]
[423039168,1779786633000,-568.97346703,0.00025685,2]
[423039171,1779786633000,-235.71562076,0.00025685,2]
[423039172,1779786633000,-500.0,0.00025685,2]
[423039182,1779786633000,-277.70821029,0.00025686,2]
[423039162,1779786633000,-500.0,0.00025683,2]
[423039173,1779786633000,-502.14425081,0.00025685,2]
[423039180,1779786633000,-69722.67232305,0.00025686,2]
[423039174,1779786633000,-501.6899064,0.00025685,2]
[423039175,1779786633000,-500.0,0.00025685,2]
[423039176,1779786633000,-500.0,0.00025685,2]
[423039177,1779786633000,-504.9957341,0.00025685,2]
[423039178,1779786633000,-48692.58675854,0.00025686,2]
[423039179,1779786633000,-3911.10367792,0.00025686,2]
[423039185,1779786633000,-478.71464233,0.00025686,2]
[423039187,1779786633000,-18248.47643739,0.00025686,2]
[423039183,1779786633000,-810.12881113,0.00025686,2]
[423039186,1779786633000,-440.00000001,0.00025686,2]
[423039184,1779786633000,-3184.83094082,0.00025686,2]
[423039181,1779786633000,-58164.90016381,0.00025686,2]
[423039170,1779786633000,-151.0,0.00025685,2]
[423039161,1779786633000,-500.0,0.00025683,2]
[423039152,1779786633000,-500.0,0.00025683,2]
[423039132,1779786633000,-500.0,0.00025683,2]
[423039134,1779786633000,-500.0,0.00025683,2]
[423039144,1779786633000,-500.0,0.00025683,2]
[423039145,1779786633000,-500.0,0.00025683,2]
[423039133,1779786633000,-500.0,0.00025683,2]
[423039142,1779786633000,-500.0,0.00025683,2]
[423039138,1779786633000,-500.0,0.00025683,2]
[423039141,1779786633000,-500.0,0.00025683,2]
[423039137,1779786633000,-500.0,0.00025683,2]
[423039135,1779786633000,-500.0,0.00025683,2]
[423039160,1779786633000,-500.0,0.00025683,2]
[423039140,1779786633000,-500.0,0.00025683,2]
[423039139,1779786633000,-500.0,0.00025683,2]
[423039136,1779786633000,-500.0,0.00025683,2]
[423039146,1779786633000,-500.0,0.00025683,2]
[423039156,1779786633000,-500.0,0.00025683,2]
[423039155,1779786633000,-500.0,0.00025683,2]
[423039143,1779786633000,-500.0,0.00025683,2]
[423039151,1779786633000,-500.0,0.00025683,2]
[423039150,1779786633000,-500.0,0.00025683,2]
[423039149,1779786633000,-500.0,0.00025683,2]
[423039148,1779786633000,-500.0,0.00025683,2]
[423039158,1779786633000,-500.0,0.00025683,2]
[423039157,1779786633000,-500.0,0.00025683,2]
[423039147,1779786633000,-500.0,0.00025683,2]
[423039153,1779786633000,-500.0,0.00025683,2]
[423039193,1779786637000,-362.70912061,0.00025585,2]
[423039194,1779786637000,-41.24487939,0.00025683,10]
[423039192,1779786637000,-151.0,0.0002523,2]
[423039195,1779786638000,-251.71387294,0.00025683,10]
[423039196,1779786638000,-165.04124767,0.00025683,10]
[423039197,1779786638000,-450.17422658,0.00025686,2]
[423039201,1779786638000,-780.86,0.00025686,2]
[423039198,1779786638000,-849.0,0.00025686,2]
[423039200,1779786638000,-4551.44588018,0.00025686,2]
[423039199,1779786638000,-39007.32644205,0.00025686,2]
[423039202,1779786638000,-273.2694314,0.00025686,2]
[423039211,1779786640000,-652.04183587,0.00025686,2]
[423039210,1779786640000,-1497.39788495,0.00025686,2]
[423039217,1779786643000,-151.0,0.00025585,2]
[423039220,1779786643000,-1226.85239246,0.00025686,2]
[423039219,1779786643000,-3521.68008655,0.00025686,2]
[423039218,1779786643000,-15049.0,0.00025686,2]
[423039221,1779786643000,-438.06726053,0.00025686,2]
[423039224,1779786643000,-454.68174005,0.00025686,2]
[423039223,1779786643000,-686.31414212,0.00025686,2]
[423039225,1779786643000,-775.27702504,0.00025686,2]
[423039227,1779786643000,-4399.84067227,0.00025686,2]
[423039226,1779786643000,-77.30589032,0.00025686,2]
[423039222,1779786643000,-510.13958758,0.00025686,2]
[423039266,1779786648000,-3193.62041883,0.00025686,2]
[423039265,1779786648000,-5089.98681558,0.00025686,2]
[423039264,1779786648000,-4580.66725332,0.00025686,2]
[423039262,1779786648000,-1992.982,0.00024319,2]
[423039263,1779786648000,-1849.1177,0.00025686,2]
[423039278,1779787590000,-163.5,0.00013724,2]
[423039279,1779787590000,-23.64327608,0.00013724,2]
[423039277,1779787590000,-161.86,0.00011212,2]
[423039282,1779787619000,446.46,0.00027773,120]
[423039283,1779787740000,1000.0,0.00028031,120]
[423039304,1779787832000,-156.40168343,0.00019912,2]
[423039305,1779787832000,-10388.01477355,0.00019923,2]
[423039301,1779787832000,-433.5,0.0001841,2]
[423039300,1779787832000,-250.0,0.00018345,2]
[423039302,1779787832000,-1643.48682498,0.00018895,2]
[423039298,1779787832000,-433.5,0.00016438,2]
[423039299,1779787832000,-242.30195959,0.00018,2]
[423039297,1779787832000,-1643.48682498,0.00016338,2]
[423039296,1779787832000,-27398.86227759,0.00015,2]
[423039295,1779787832000,-64973.62099118,0.00015,2]
[423039293,1779787832000,-74519.15871404,0.00015,2]
[423039294,1779787832000,-2808.55357008,0.00015,2]
[423039288,1779787832000,-353.79781304,0.00014999,2]
[423039290,1779787832000,-336.0,0.00014999,2]
[423039292,1779787832000,-150.0,0.00014999,2]
[423039289,1779787832000,-300.0,0.00014999,2]
[423039287,1779787832000,-161.90935226,0.00013724,2]
[423039286,1779787832000,-129.24672392,0.00013724,2]
[423039291,1779787832000,-300.0,0.00014999,2]
[423039307,1779787832000,-168.0,0.0002,2]
[423039303,1779787832000,-303.60326786,0.00019912,2]
[423039314,1779787832000,-158.0,0.00021,2]
[423039306,1779787832000,-158.0,0.0002,2]
[423039328,1779787832000,-500.0,0.0002145,2]
[423039327,1779787832000,-500.0,0.0002145,2]
[423039330,1779787832000,-500.0,0.0002145,2]
[423039331,1779787832000,-162.5762671,0.0002145,2]
[423039326,1779787832000,-500.0,0.0002145,2]
[423039325,1779787832000,-396.66450745,0.0002145,2]
[423039324,1779787832000,-500.0,0.0002145,2]
[423039322,1779787832000,-500.0,0.0002145,2]
[423039323,1779787832000,-500.0,0.0002145,2]
[423039329,1779787832000,-500.0,0.0002145,2]
[423039319,1779787832000,-166.66,0.00021224,2]
[423039318,1779787832000,-277.0,0.00021,2]
[423039320,1779787832000,-308.09583314,0.0002145,2]
[423039308,1779787832000,-277.0,0.0002,2]
[423039309,1779787832000,-433.5,0.00020381,2]
[423039310,1779787832000,-152.0,0.00020792,7]
[423039316,1779787832000,-1998.91639111,0.00021,2]
[423039321,1779787832000,-237.33688392,0.0002145,2]
[423039312,1779787832000,-502.0,0.00020849,2]
[423039349,1779787833000,-290.39,0.00022455,2]
[423039354,1779787833000,-367.97,0.00022883,2]
[423039350,1779787833000,-150.0,0.00022529,2]
[423039351,1779787833000,-166.66,0.00022564,30]
[423039352,1779787833000,-471.92,0.00022691,2]
[423039353,1779787833000,-219.33,0.00022691,2]
[423039359,1779787833000,-166.66,0.00023458,30]
[423039357,1779787833000,-277.0,0.00023,2]
[423039358,1779787833000,-166.66,0.00023011,30]
[423039360,1779787833000,-156.21,0.00023655,2]
[423039361,1779787833000,-215.42269777,0.00023669,2]
[423039362,1779787833000,-197.93830091,0.000237,2]
[423039364,1779787833000,-797.90904886,0.000237,2]
[423039356,1779787833000,-175.0,0.00023,2]
[423039348,1779787833000,-278.76025218,0.00022449,2]
[423039340,1779787833000,-277.0,0.00022,2]
[423039355,1779787833000,-500.0,0.00022984,2]
[423039363,1779787833000,-200.54379795,0.000237,2]
[423039334,1779787833000,-500.0,0.0002145,2]
[423039332,1779787833000,-500.0,0.0002145,2]
[423039333,1779787833000,-500.0,0.0002145,2]
[423039335,1779787833000,-1643.48682498,0.00021451,2]
[423039338,1779787833000,-502.36932317,0.00021906,2]
[423039336,1779787833000,-166.66,0.00021671,2]
[423039337,1779787833000,-500.0,0.000219,2]
[423039343,1779787833000,-531.31,0.00022142,2]
[423039346,1779787833000,-433.5,0.00022353,2]
[423039341,1779787833000,-166.66,0.00022117,30]
[423039339,1779787833000,-158.0,0.00022,2]
[423039342,1779787833000,-5000.0,0.00022124,2]
[423039345,1779787833000,-446.46,0.00022219,2]
[423039344,1779787833000,-335.38,0.00022161,2]
[423039347,1779787833000,-161.86,0.00022425,2]
[423039366,1779787833000,-797.90904886,0.000239,2]
[423039382,1779787833000,-9999.99,0.0002498,2]
[423039367,1779787833000,-277.0,0.00024,2]
[423039386,1779787833000,-505.0,0.00025082,2]
[423039387,1779787833000,-505.0,0.00025082,2]
[423039392,1779787833000,-167.56770091,0.00025368,2]
[423039391,1779787833000,-350.0,0.00025329,5]
[423039390,1779787833000,-162.15,0.00025278,7]
[423039395,1779787833000,-200.0,0.00025368,2]
[423039389,1779787833000,-155.0,0.000252,7]
[423039394,1779787833000,-260.82212648,0.00025368,2]
[423039397,1779787833000,-350.0,0.00025379,2]
[423039398,1779787833000,-255.26524329,0.00025571,2]
[423039399,1779787833000,-1000.0,0.000256,2]
[423039400,1779787833000,-4763.20374005,0.00025613,2]
[423039401,1779787833000,-1254.41808677,0.00025613,2]
[423039365,1779787833000,-200.0,0.00023754,2]
[423039396,1779787833000,-174.61919141,0.00025368,2]
[423039388,1779787833000,-505.0,0.00025082,2]
[423039393,1779787833000,-1191.11104074,0.00025368,2]
[423039383,1779787833000,-446.46,0.00024996,2]
[423039385,1779787833000,-155.43,0.00025,2]
[423039371,1779787833000,-1225.0,0.00024319,2]
[423039369,1779787833000,-797.90904886,0.000241,2]
[423039370,1779787833000,-23524.07,0.00024174,2]
[423039372,1779787833000,-3636.0,0.00024319,2]
[423039374,1779787833000,-433.5,0.00024324,2]
[423039373,1779787833000,-3547.0,0.00024319,2]
[423039375,1779787833000,-797.90904886,0.000244,2]
[423039368,1779787833000,-1643.48682498,0.00024008,2]
[423039377,1779787833000,-1000.0,0.00024658,2]
[423039378,1779787833000,-162.15,0.00024658,2]
[423039379,1779787833000,-155.0,0.00024658,2]
[423039381,1779787833000,-9999.99,0.0002498,2]
[423039384,1779787833000,-281.0,0.00025,2]
[423039380,1779787833000,-2779.27,0.0002498,2]
[423039376,1779787833000,-797.90904886,0.000246,2]
[423039484,1779787840000,-255.26524323,0.00027102,2]
[423039487,1779787840000,-9076.01,0.00027397,10]
[423039489,1779787840000,-505.0,0.0002747,4]
[423039498,1779787840000,-641.35,0.0002755,30]
[423039488,1779787840000,-152.89,0.00027448,2]
[423039491,1779787840000,-1276.63,0.0002755,30]
[423039490,1779787840000,-150.0,0.00027521,2]
[423039496,1779787840000,-1944.19,0.0002755,30]
[423039492,1779787840000,-1969.32,0.0002755,30]
[423039494,1779787840000,-172.96,0.0002755,2]
[423039495,1779787840000,-1276.9,0.0002755,30]
[423039499,1779787840000,-155.0,0.00027666,7]
[423039500,1779787840000,-172.96,0.00027695,7]
[423039502,1779787840000,-1276.63,0.00027711,7]
[423039493,1779787840000,-667.96,0.0002755,30]
[423039481,1779787840000,-200.0,0.000263,2]
[423039501,1779787840000,-732.0,0.00027711,5]
[423039480,1779787840000,-433.5,0.00026296,2]
[423039468,1779787840000,-3056.88279698,0.00025613,2]
[423039469,1779787840000,-439.0,0.00025613,10]
[423039470,1779787840000,-237.3462421,0.00025658,2]
[423039471,1779787840000,-1906.7129579,0.00025658,2]
[423039472,1779787840000,-19558.7099017,0.00025658,2]
[423039473,1779787840000,-415.04021071,0.00025658,2]
[423039474,1779787840000,-293.4671236,0.00025658,2]
[423039475,1779787840000,-151.0,0.00025683,7]
[423039476,1779787840000,-505.0,0.00025878,2]
[423039485,1779787840000,-1500.0,0.00027397,2]
[423039478,1779787840000,-280.93086268,0.00025916,2]
[423039477,1779787840000,-588.00677546,0.00025916,2]
[423039479,1779787840000,-350.0,0.00026241,6]
[423039486,1779787840000,-300.0,0.00027397,2]
[423039482,1779787840000,-1643.48682498,0.00026564,2]
[423039483,1779787840000,-505.0,0.00026674,3]
[423039503,1779787840000,-1969.32,0.00027711,7]
[423039497,1779787840000,-155.0,0.0002755,2]
[423039505,1779787840000,-1276.9,0.00027711,7]
[423039525,1779787840000,-1944.19,0.00028033,30]
[423039527,1779787840000,-172.98,0.0002813,7]
[423039529,1779787840000,-257.93049076,0.00028194,7]
[423039528,1779787840000,-155.03,0.0002813,30]
[423039526,1779787840000,-641.35,0.00028033,30]
[423039530,1779787840000,-494.29506476,0.00028194,7]
[423039533,1779787840000,-667.96,0.00028194,7]
[423039531,1779787840000,-524.40444448,0.00028194,7]
[423039535,1779787840000,-1944.19,0.00028194,7]
[423039534,1779787840000,-1276.9,0.00028194,7]
[423039536,1779787840000,-641.35,0.00028194,7]
[423039538,1779787840000,-176.67697287,0.00028267,2]
[423039539,1779787840000,-256.82302713,0.00028267,2]
[423039537,1779787840000,-505.0,0.00028266,5]
[423039504,1779787840000,-667.96,0.00027711,7]
[423039522,1779787840000,-1969.32,0.00028033,30]
[423039517,1779787840000,-641.35,0.00027872,2]
[423039532,1779787840000,-1969.32,0.00028194,7]
[423039514,1779787840000,-667.96,0.00027872,2]
[423039520,1779787840000,-155.0,0.00028014,7]
[423039508,1779787840000,-356.07700292,0.00027772,3]
[423039510,1779787840000,-172.96,0.0002784,30]
[423039511,1779787840000,-350.0,0.00027862,7]
[423039507,1779787840000,-641.35,0.00027711,7]
[423039540,1779787840000,-128.05390671,0.000283,2]
[423039506,1779787840000,-1944.19,0.00027711,7]
[423039513,1779787840000,-1969.32,0.00027872,2]
[423039509,1779787840000,-155.0,0.00027782,30]
[423039524,1779787840000,-1276.9,0.00028033,30]
[423039521,1779787840000,-1276.63,0.00028033,30]
[423039519,1779787840000,-172.96,0.00027985,2]
[423039516,1779787840000,-1944.19,0.00027872,2]
[423039515,1779787840000,-1276.9,0.00027872,2]
[423039512,1779787840000,-1276.63,0.00027872,2]
[423039518,1779787840000,-155.0,0.00027898,2]
[423039523,1779787840000,-667.96,0.00028033,30]
[423039571,1779787843000,-916.7704065,0.0002755,30]
[423039568,1779787843000,-155.43,0.00024658,2]
[423039570,1779787843000,-1500.0,0.00027397,2]
[423039573,1779787843000,-347.6495935,0.0002755,30]
[423039569,1779787843000,-883.56218862,0.00025558,2]
[423039572,1779787843000,-155.43,0.00025278,7]
[423039574,1779787843000,-661.25,0.0002755,30]
[423039582,1779787843000,-1484.80546152,0.00027711,7]
[423039577,1779787843000,-165.79,0.00027695,7]
[423039578,1779787843000,-661.25,0.00027711,7]
[423039575,1779787843000,-1973.63,0.0002755,30]
[423039580,1779787843000,-687.1348873,0.00027711,7]
[423039583,1779787843000,-160.52176875,0.0002784,30]
[423039579,1779787843000,-577.2851127,0.00027711,7]
[423039581,1779787843000,-488.82453848,0.00027711,7]
[423039576,1779787843000,-165.79,0.0002755,2]
[423039605,1779787847000,-155.43,0.00027139,7]
[423039603,1779787847000,-155.43,0.00025898,30]
[423039606,1779787847000,-883.56218856,0.00027528,2]
[423039602,1779787847000,-1355.0,0.00024684,2]
[423039607,1779787847000,-1355.0,0.00027684,2]
[423039604,1779787847000,-155.43,0.00026518,2]
[423039608,1779787847000,-155.43,0.00027759,30]
[423039610,1779787847000,-1264.42,0.00027872,2]
[423039614,1779787847000,-661.25,0.00028033,30]
[423039616,1779787847000,-616.51043964,0.00028033,30]
[423039611,1779787847000,-661.25,0.00027872,2]
[423039613,1779787847000,-165.79,0.00027985,2]
[423039612,1779787847000,-1973.63,0.00027872,2]
[423039609,1779787847000,-5.26823125,0.0002784,30]
[423039617,1779787847000,-312.7640865,0.00028033,30]
[423039615,1779787847000,-647.90956036,0.00028033,30]
[423039618,1779787848000,-160.36958817,0.000237,2]
[423039619,1779787848000,-93.15041183,0.00028033,30]
[423039620,1779787848000,-422.3026672,0.00028033,30]
[423039638,1779788941000,1000.0,0.0002803,120]
[423039671,1779789032000,-319.20515021,0.000239,2]
[423039672,1779789032000,-160.36958817,0.000239,2]
[423039675,1779789032000,-216.0,0.00024,2]
[423039676,1779789032000,-8790.12,0.00024174,2]
[423039682,1779789032000,-218.4,0.00024324,2]
[423039681,1779789032000,-160.36958817,0.000242,2]
[423039684,1779789032000,-500.0,0.00024514,2]
[423039685,1779789032000,-319.20515021,0.000246,2]
[423039680,1779789032000,-319.20515021,0.000242,2]
[423039683,1779789032000,-319.20515021,0.000244,2]
[423039660,1779789032000,-215.42269777,0.0002368,2]
[423039678,1779789032000,-150.99,0.00024174,2]
[423039686,1779789032000,-187.81,0.00024658,2]
[423039687,1779789032000,-189.53,0.00024658,2]
[423039688,1779789032000,-190.72,0.00024658,2]
[423039679,1779789032000,-166.66,0.00024187,30]
[423039656,1779789032000,-543.99,0.00022466,2]
[423039651,1779789032000,-500.0,0.000219,2]
[423039669,1779789032000,-5531.0,0.000238,5]
[423039692,1779789032000,-892.76509328,0.00024952,2]
[423039642,1779789032000,-164.46,0.00012796,2]
[423039643,1779789032000,-250.0,0.00014,2]
[423039647,1779789032000,-166.0,0.0002,2]
[423039644,1779789032000,-300.0,0.00016,2]
[423039648,1779789032000,-216.0,0.0002,2]
[423039646,1779789032000,-218.4,0.0001841,2]
[423039658,1779789032000,-216.0,0.00023,2]
[423039645,1779789032000,-167.72,0.00016712,2]
[423039650,1779789032000,-216.0,0.00021,2]
[423039652,1779789032000,-160.58117814,0.000219,2]
[423039664,1779789032000,-194.57200394,0.000237,2]
[423039662,1779789032000,-319.20515021,0.000237,2]
[423039654,1779789032000,-218.4,0.00022353,2]
[423039666,1779789032000,-160.36958817,0.000237,2]
[423039653,1779789032000,-216.0,0.00022,2]
[423039649,1779789032000,-218.4,0.00020381,2]
[423039691,1779789032000,-2654.23490672,0.00024952,2]
[423039708,1779789032000,-500.0,0.00025657,2]
[423039696,1779789032000,-233.0,0.00025,2]
[423039715,1779789032000,-4193.4454024,0.00026459,2]
[423039713,1779789032000,-448.161465,0.00026459,2]
[423039716,1779789032000,-157.76,0.00026627,2]
[423039718,1779789032000,-1000.0,0.00027,2]
[423039721,1779789032000,-889.52,0.00027004,2]
[423039719,1779789032000,-928.0,0.00027,2]
[423039722,1779789032000,-163.58,0.00027027,2]
[423039720,1779789032000,-309.0,0.00027,2]
[423039723,1779789032000,-500.0,0.00027123,2]
[423039724,1779789032000,-500.0,0.00027123,2]
[423039726,1779789032000,-500.0,0.00027123,2]
[423039728,1779789032000,-163.371,0.00027205,15]
[423039725,1779789032000,-500.0,0.00027123,2]
[423039727,1779789032000,-1849.121,0.00027205,15]
[423039689,1779789032000,-928.0,0.00024952,2]
[423039714,1779789032000,-3016.8970134,0.00026459,2]
[423039712,1779789032000,-174.7940025,0.00026459,2]
[423039717,1779789032000,-166.66,0.00026733,30]
[423039710,1779789032000,-167.09,0.00026104,2]
[423039693,1779789032000,-525.0,0.00024952,2]
[423039694,1779789032000,-418.0,0.00024952,2]
[423039690,1779789032000,-1355.0,0.00024952,2]
[423039711,1779789032000,-218.4,0.00026296,2]
[423039697,1779789032000,-1005.97,0.00025313,2]
[423039695,1779789032000,-931.0,0.00024952,2]
[423039699,1779789032000,-157.76,0.00025359,2]
[423039702,1779789032000,-75.86576128,0.00025372,2]
[423039698,1779789032000,-5000.0,0.00025355,2]
[423039701,1779789032000,-924.13423872,0.00025372,2]
[423039700,1779789032000,-413.89,0.00025364,2]
[423039705,1779789032000,-2531.65,0.00025569,2]
[423039707,1779789032000,-1000.0,0.000256,2]
[423039709,1779789032000,-157.76,0.00025993,2]
[423039703,1779789032000,-156.21,0.00025449,2]
[423039704,1779789032000,-240.45,0.00025485,2]
[423039706,1779789032000,-164.46,0.00025592,2]
[423039744,1779789033000,-1145.41283447,0.00028033,30]
[423039735,1779789033000,-254.29,0.00027558,2]
[423039730,1779789033000,-1500.0,0.00027397,2]
[423039731,1779789033000,-1467.22,0.00027397,2]
[423039729,1779789033000,-157.76,0.00027261,2]
[423039732,1779789033000,-300.0,0.00027397,2]